bitfinex-derivatives/quotes_SOLF0:USTF0_20251002
["timestamp","ask_amount","ask_price","bid_price","bid_amount"]
[1759383218807,0.77037168,226.01,225.86,61.9529]
[1759383219111,0.77037168,226.01,225.87,3.9823]
[1759383220008,0.77037168,226.01,225.88,9.6]
[1759383221408,0.77037168,226.01,225.89,3.9821]
[1759383222107,0.77037168,226.01,225.89,11.6321]
[1759383222296,7.3,226.03,225.91,3.9817]
[1759383222501,7.3,226.03,225.91,61.9391]
[1759383222704,7.3,226.03,225.89,7.65]
[1759383222900,69.2075,226.03,225.89,7.65]
[1759383223098,7.3,226.01,225.88,9.6]
[1759383224203,61.9148,226.0,225.88,9.6]
[1759383224510,7.3,225.99,225.88,9.6]
[1759383224903,7.3,226.06,225.93,7.65]
[1759383225102,7.3,226.06,225.9,61.9411]
[1759383225103,61.8585,226.21,226.0,7.65]
[1759383225302,10.83706504,226.2,226.01,61.9117]
[1759383225599,0.76982635,226.17,226.03,61.9042]
[1759383225800,7.3,226.2,226.05,61.9004]
[1759383226611,7.3,226.2,226.08,3.9787]
[1759383226806,4.74644121,226.21,226.09,7.65]
[1759383226807,0.76974121,226.21,226.09,7.65]
[1759383229808,0.76974121,226.21,226.03,7.65]
[1759383230004,61.8814,226.12,225.94,3.53706504]
[1759383230207,3.9787,226.09,225.98,7.65]
[1759383230609,7.3,226.07,225.92,7.65]
[1759383232211,61.9038,226.04,225.92,7.65]
[1759383232415,7.3,226.07,225.92,7.65]
[1759383233015,3.9794,226.05,225.92,7.65]
[1759383233817,61.9121,226.01,225.88,9.6]
[1759383234210,61.9165,226.0,225.88,9.6]
[1759383234412,3.9807,225.98,225.88,9.6]
[1759383235421,3.98,226.01,225.88,9.6]
[1759383235612,61.9147,226.0,225.88,9.6]
[1759383236111,3.9808,225.97,225.88,9.6]
[1759383236309,7.39,226.02,225.88,9.6]
[1759383237714,7.39,226.02,225.89,3.9821]
[1759383238315,7.39,226.02,225.88,9.6]
[1759383238316,7.39,226.02,225.91,3.9817]
[1759383239311,7.39,226.02,225.9,7.71]
[1759383239911,10.92706504,226.08,225.92,7.71]
[1759383240319,7.39,226.08,225.94,7.71]
[1759383241317,7.39,226.08,225.95,9.62]
[1759383241719,7.39,226.08,225.96,3.9808]
[1759383243114,61.8665,226.18,225.99,7.71]
[1759383243115,7.39,226.16,225.99,7.71]
[1759383244322,11.3674,226.16,226.02,3.9797]
[1759383245328,7.39,226.16,226.04,3.9793]
[1759383246019,8.15974121,226.21,226.06,3.9791]
[1759383246218,8.15974121,226.21,226.07,7.71]
[1759383247621,8.15974121,226.21,226.08,3.9786]
[1759383248621,3.9758,226.25,226.1,3.9783]
[1759383248826,4.74542204,226.25,226.1,3.9783]
[1759383249124,4.74542204,226.25,226.09,7.71]
[1759383249125,7.39,226.22,226.09,7.71]
[1759383249317,61.8683,226.17,226.04,7.71]
[1759383249520,61.8683,226.17,225.98,7.71]
[1759383249521,3.9778,226.14,225.98,7.71]
[1759383249716,7.39,226.14,225.98,7.71]
[1759383250118,7.39,226.11,225.98,7.71]
[1759383250519,7.39,226.11,225.99,3.9803]
[1759383251419,11.3684,226.11,225.98,7.71]
[1759383251827,3.9787,226.09,225.98,7.71]
[1759383252524,61.9148,226.0,225.95,9.41850721]
[1759383252926,7.39,225.96,225.95,9.41850721]
[1759383253330,7.83,225.96,225.83,13.61273734]
[1759383253627,7.83,225.96,225.83,7.71]
[1759383253628,7.39,225.96,225.83,7.71]
[1759383255030,7.39,225.96,225.83,11.6931]
[1759383255331,7.39,225.96,225.83,69.6699]
[1759383256133,7.39,226.01,225.87,7.71]
[1759383257930,61.9152,226.0,225.87,7.71]
[1759383258329,7.39,225.99,225.81,7.71]
[1759383258528,7.39,225.97,225.81,7.71]
[1759383258926,7.39,225.97,225.82,9.45]
[1759383259227,7.39,226.04,225.85,61.9556]
[1759383259530,7.39,226.02,225.83,69.6705]
[1759383260836,3.9801,226.01,225.85,61.9552]
[1759383261635,3.9801,226.01,225.87,3.9823]
[1759383262031,7.21,225.98,225.83,7.71]
[1759383262535,7.21,225.98,225.83,11.693]
[1759383262736,3.9807,225.97,225.83,11.693]
[1759383262941,61.9229,225.97,225.83,7.71]
[1759383263236,61.9262,225.96,225.83,7.71]
[1759383263626,3.9812,225.94,225.83,7.71]
[1759383265138,7.21,225.98,225.86,3.9826]
[1759383265336,7.21,225.98,225.87,7.75]
[1759383266732,61.9131,226.01,225.82,9.45]
[1759383266733,69.1556,225.96,225.82,9.45]
[1759383266936,7.23,225.96,225.82,9.45]
[1759383267637,3.9811,225.95,225.84,3.9829]
[1759383267837,61.9288,225.95,225.82,9.45]
[1759383268037,61.9313,225.94,225.82,9.45]
[1759383268335,3.9819,225.91,225.82,9.45]
[1759383268833,7.23,225.91,225.82,9.45]
[1759383269038,3.9822,225.89,225.82,9.45]
[1759383269531,7.23,225.91,225.82,9.45]
[1759383270042,61.9435,225.9,225.82,9.45]
[1759383270340,7.23,225.85,225.82,9.45]
[1759383270539,3.9827,225.86,225.82,9.45]
[1759383270738,69.1794,225.88,225.82,9.45]
[1759383271433,3.9826,225.87,225.82,9.45]
[1759383271641,7.23,225.86,225.82,9.45]
[1759383272635,3.9826,225.87,225.82,9.45]
[1759383272845,118.72,225.88,225.82,9.45]
[1759383273236,7.23,225.83,225.82,9.45]
[1759383273536,7.23,225.83,225.7,7.75]
[1759383273839,3.9834,225.82,225.7,7.75]
[1759383274134,7.23,225.83,225.7,7.75]
[1759383275344,11.2132,225.83,225.7,11.7354]
[1759383275539,11.2132,225.83,225.7,7.75]
[1759383276637,11.2132,225.83,225.72,3.985]
[1759383276834,11.2132,225.83,225.7,7.75]
[1759383277543,11.2132,225.83,225.71,3.9852]
[1759383279846,11.2132,225.83,225.72,0.05]
[1759383280542,3.9826,225.87,225.73,7.75]
[1759383281048,7.23,225.88,225.73,7.75]
[1759383281749,7.23,225.86,225.73,7.75]
[1759383282549,0.77091779,225.84,225.73,7.75]
[1759383283552,4.75401779,225.84,225.73,7.75]
[1759383285752,0.77091779,225.84,225.73,7.75]
[1759383285947,7.23,225.86,225.73,7.75]
[1759383287651,7.23,225.86,225.76,3.9843]
[1759383288149,3.982,225.9,225.77,7.75]
[1759383289147,8.00072998,225.91,225.77,7.75]
[1759383289449,7.23,225.87,225.72,7.8]
[1759383289655,7.23,225.86,225.72,11.7851]
[1759383290356,3.9832,225.83,225.72,11.7851]
[1759383292846,3.9836,225.81,225.72,7.8]
[1759383293652,3.9839,225.79,225.72,7.8]
[1759383294258,11.2135,225.82,225.72,7.8]
[1759383295758,11.2135,225.82,225.72,11.7851]
[1759383295959,7.23,225.82,225.72,7.8]
[1759383296156,3.9829,225.85,225.72,7.8]
[1759383296356,69.131,225.87,225.72,7.8]
[1759383296660,116.1045,225.89,225.72,7.8]
[1759383296661,3.9836,225.81,225.72,7.8]
[1759383297658,7.18,225.82,225.72,7.8]
[1759383298062,11.1633,225.82,225.72,7.8]
[1759383298857,3.9829,225.85,225.72,0.05]
[1759383299160,3.9829,225.85,225.73,7.86]
[1759383300452,11.1625,225.87,225.73,7.86]
[1759383300756,11.1625,225.87,225.74,7.86]
[1759383300961,7.18,225.87,225.75,3.9844]
[1759383301157,7.18,225.84,225.74,7.86]
[1759383301462,7.18,225.81,225.72,0.05]
[1759383301668,116.1062,225.89,225.73,7.86]
[1759383301859,7.18,225.88,225.73,7.86]
[1759383302259,7.18,225.84,225.73,7.86]
[1759383302866,3.9834,225.82,225.72,0.05]
[1759383303364,7.18,225.81,225.72,0.05]
[1759383303567,3.9838,225.8,225.72,0.05]
[1759383306172,7.18,225.81,225.72,0.05]
[1759383306759,11.1635,225.81,225.72,0.05]
[1759383306963,7.18,225.81,225.72,0.05]
[1759383307668,3.9842,225.77,225.72,0.05]
[1759383307966,61.9785,225.77,225.72,0.05]
[1759383308162,11.165,225.73,225.72,0.0001]
[1759383308369,7.62,225.73,225.72,0.0001]
[1759383308569,7.18,225.73,225.72,0.0001]
[1759383309369,7.62,225.73,225.72,0.0001]
[1759383310873,7.18,225.67,225.55,11.44450363]
[1759383311076,7.18,225.67,225.55,7.86]
[1759383311769,7.18,225.67,225.55,11.8481]
[1759383311970,7.18,225.72,225.55,7.86]
[1759383312170,7.18,225.72,225.55,11.44450363]
[1759383312374,7.18,225.72,225.56,3.9879]
[1759383312674,7.18,225.72,225.55,7.86]
[1759383312874,125.78,225.72,225.55,7.86]
[1759383313269,7.18,225.72,225.55,7.86]
[1759383313572,69.173,225.72,225.55,11.848]
[1759383313873,7.18,225.71,225.55,11.848]
[1759383314168,7.18,225.66,225.51,7.86]
[1759383315471,3.9867,225.64,225.51,7.86]
[1759383315676,7.18,225.63,225.51,7.86]
[1759383316070,3.9869,225.62,225.51,7.86]
[1759383317574,7.18,225.63,225.51,7.86]
[1759383318178,3.9872,225.61,225.51,7.86]
[1759383318677,7.18,225.63,225.51,7.86]
[1759383319481,7.18,225.63,225.52,3.9886]
[1759383319677,7.18,225.63,225.51,7.86]
[1759383319873,7.18,225.68,225.52,62.0461]
[1759383320182,7.18,225.68,225.54,3.9882]
[1759383321080,7.18,225.68,225.57,7.86]
[1759383322783,3.986,225.67,225.57,7.86]
[1759383323582,7.18,225.68,225.57,7.86]
[1759383324684,11.1658,225.68,225.57,7.86]
[1759383325177,7.18,225.68,225.57,7.86]
[1759383325778,3.986,225.67,225.57,7.86]
[1759383326680,7.41,225.64,225.52,7.46]
[1759383327279,3.9871,225.61,225.52,7.46]
[1759383328775,3.9874,225.59,225.52,7.46]
[1759383329880,3.9874,225.59,225.48,7.46]
[1759383330287,7.41,225.6,225.48,7.46]
[1759383330288,3.9879,225.57,225.48,7.46]
[1759383330585,7.41,225.56,225.48,7.46]
[1759383331583,7.41,225.56,225.44,7.46]
[1759383331584,3.9882,225.55,225.44,7.46]
[1759383333084,7.41,225.56,225.46,7.46]
[1759383334091,7.41,225.56,225.42,11.4503]
[1759383337296,3.9883,225.55,225.42,11.4503]
[1759383337888,7.41,225.56,225.42,11.4503]
[1759383338192,3.9885,225.53,225.42,12.80935426]
[1759383338498,3.9885,225.53,225.42,11.4503]
[1759383338697,3.9885,225.53,225.43,1.35905426]
[1759383339097,1.35905426,225.54,225.45,7.46]
[1759383339800,11.3981,225.56,225.47,7.46]
[1759383340100,8.76905426,225.61,225.49,1.35905426]
[1759383340701,11.3976,225.58,225.49,1.35905426]
[1759383340901,7.41,225.58,225.49,1.35905426]
[1759383342401,7.41,225.58,225.48,1.35905426]
[1759383342897,7.41,225.57,225.45,1.35905426]
[1759383343306,3.9882,225.55,225.45,1.35905426]
[1759383343505,7.41,225.57,225.48,1.35905426]
[1759383344898,7.41,225.57,225.49,7.46]
[1759383345299,7.41,225.57,225.5,1.35905426]
[1759383346004,8.76905426,225.57,225.47,1.35905426]
[1759383346200,8.76905426,225.57,225.45,7.46]
[1759383346606,7.41,225.57,225.47,1.35905426]
[1759383351606,7.41,225.57,225.46,3.9897]
[1759383351806,7.41,225.55,225.47,1.35905426]
[1759383352001,7.41,225.55,225.46,1.35905426]
[1759383353912,3.9885,225.53,225.46,1.35905426]
[1759383356208,7.41,225.55,225.46,1.35905426]
[1759383358013,3.9884,225.54,225.46,1.35905426]
[1759383358416,3.9884,225.54,225.45,7.46]
[1759383358613,7.73,225.53,225.45,7.46]
[1759383359719,7.73,225.53,225.46,1.35905426]
[1759383362119,11.7185,225.53,225.46,1.35905426]
[1759383362420,11.7185,225.53,225.45,7.46]
[1759383362621,7.73,225.53,225.43,1.35905426]
[1759383363024,3.9892,225.5,225.4,12.80355789]
[1759383363217,7.73,225.49,225.4,9.21905426]
[1759383364220,7.73,225.49,225.43,1.35905426]
[1759383368228,7.73,225.49,225.4,17.55883095]
[1759383368427,7.73,225.49,225.4,11.44450363]
[1759383368625,69.7822,225.5,225.39,3.58450363]
[1759383369533,7.73,225.46,225.38,3.58450363]
[1759383371234,7.73,225.46,225.39,3.58450363]
[1759383371624,7.73,225.46,225.39,7.57550363]
[1759383372330,7.73,225.46,225.39,3.58450363]
[1759383375457,7.73,225.46,225.4,3.58450363]
[1759383377847,3.9888,225.51,225.4,3.58450363]
[1759383378047,7.73,225.5,225.4,3.58450363]
[1759383378449,7.73,225.5,225.4,7.57520363]
[1759383379445,7.73,225.5,225.4,3.58450363]
[1759383380051,7.73,225.5,225.39,3.58450363]
[1759383380348,11.7189,225.5,225.4,3.9907]
[1759383380547,7.73,225.5,225.39,3.58450363]
[1759383380853,11.7197,225.47,225.38,3.58450363]
[1759383381349,11.7197,225.47,225.37,15.43580363]
[1759383382948,7.73,225.47,225.38,3.58450363]
[1759383383250,7.73,225.47,225.37,7.86]
[1759383383251,7.73,225.47,225.39,3.58450363]
[1759383384545,7.73,225.47,225.4,3.9907]
[1759383386342,7.73,225.47,225.4,7.57520363]
[1759383387552,7.73,225.47,225.4,3.58450363]
[1759383387751,7.73,225.47,225.37,16.67627032]
[1759383387752,7.73,225.47,225.39,3.58450363]
[1759383387948,7.73,225.47,225.37,3.58450363]
[1759383388254,7.73,225.47,225.35,3.58450363]
[1759383388452,3.9901,225.45,225.35,3.58450363]
[1759383388646,7.27,225.44,225.35,3.58450363]
[1759383388947,62.0603,225.47,225.33,10.95450363]
[1759383389153,7.27,225.46,225.33,7.37]
[1759383390648,7.27,225.42,225.33,7.37]
[1759383393258,11.261,225.39,225.31,9.31959689]
[1759383393454,11.261,225.39,225.31,5.73509326]
[1759383393651,7.27,225.39,225.31,5.73509326]
[1759383395059,7.27,225.39,225.32,7.37]
[1759383395550,7.27,225.39,225.34,3.9918]
[1759383395756,7.27,225.39,225.35,7.37]
[1759383395958,7.27,225.42,225.31,17.09739326]
[1759383398860,3.9903,225.43,225.31,17.09739326]
[1759383399063,7.27,225.42,225.31,17.09739326]
[1759383399551,7.27,225.42,225.33,3.992]
[1759383400958,7.27,225.42,225.34,7.37]
[1759383403263,13.06201836,225.45,225.35,3.9916]
[1759383403458,2.12352732,225.4,225.28,3.58450363]
[1759383403759,7.27,225.21,225.06,3.58450363]
[1759383403963,2.12352732,225.2,225.09,3.58450363]
[1759383404163,2.12352732,225.2,225.08,7.37]
[1759383404472,7.27,225.19,225.08,7.37]
[1759383404660,11.2645,225.19,225.08,7.37]
[1759383404958,7.27,225.15,225.01,47.6]
[1759383405162,7.27,225.15,225.03,3.9972]
[1759383405359,7.27,225.15,225.04,7.37]
[1759383406163,7.27,225.15,225.06,7.37]
[1759383406966,7.27,225.13,225.01,7.37]
[1759383407167,7.27,225.09,225.01,7.37]
[1759383407367,7.27,225.09,224.96,7.37]
[1759383407861,2.12352732,225.15,225.01,69.5557]
[1759383408062,2.12352732,225.15,225.04,7.37]
[1759383408861,2.12352732,225.15,225.04,11.3671]
[1759383411367,2.12352732,225.15,225.04,7.37]
[1759383411960,42.45,225.18,225.05,7.37]
[1759383413467,42.45,225.18,225.06,3.9967]
[1759383413665,42.45,225.18,225.07,7.37]
[1759383418066,42.45,225.18,225.03,6.12082732]
[1759383418472,46.4448,225.18,225.03,6.12082732]
[1759383420375,7.59,225.15,225.03,6.12082732]
[1759383421272,7.59,225.15,225.02,7.27]
[1759383422170,7.59,225.15,225.03,2.12352732]
[1759383422364,7.59,225.15,225.04,7.27]
[1759383423374,7.59,225.15,225.0,9.39352732]
[1759383423576,7.59,225.13,225.01,3.9976]
[1759383427476,3.9958,225.12,225.01,3.9976]
[1759383427781,7.59,225.11,225.0,7.27]
[1759383429477,10.61124646,225.11,225.0,7.27]
[1759383429681,7.59,225.08,225.0,7.27]
[1759383433283,1.36443136,225.07,224.97,1.36443136]
[1759383433483,7.59,225.06,224.96,8.63443136]
[1759383433780,11.5868,225.06,224.96,8.63443136]
[1759383434783,7.59,225.06,224.96,8.63443136]
[1759383434984,7.59,225.06,224.96,7.27]
[1759383434985,8.95443136,225.06,224.96,7.27]
[1759383435178,1.36443136,225.03,224.9,3.9995]
[1759383435385,7.59,225.02,224.91,1.36443136]
[1759383435986,7.59,225.02,224.9,11.2695]
[1759383436187,3.9977,225.01,224.91,1.36443136]
[1759383436687,7.59,225.0,224.9,8.63443136]
[1759383437482,3.9981,224.99,224.9,7.27]
[1759383437682,3.9981,224.99,224.9,8.63443136]
[1759383438685,7.02776893,224.99,224.9,8.63443136]
[1759383439186,3.9981,224.99,224.9,7.27]
[1759383439584,7.02824436,224.99,224.9,7.27]
[1759383440385,3.03014436,224.99,224.9,11.2696]
[1759383440579,3.03114335,224.99,224.9,11.2696]
[1759383440784,7.59,225.0,224.9,11.2696]
[1759383440984,7.59,225.0,224.9,8.63443136]
[1759383441284,3.03114335,225.01,224.93,1.36443136]
[1759383441491,11.68113278,225.1,224.99,1.36443136]
[1759383441492,10.62114335,225.09,224.99,1.36443136]
[1759383441686,10.62114335,225.09,224.97,7.27]
[1759383441687,7.78,225.07,224.97,7.27]
[1759383441988,7.78,225.01,224.9,1.36443136]
[1759383442188,7.78,225.01,224.92,7.65]
[1759383442994,117.24,225.06,224.94,7.65]
[1759383443192,12.17557471,225.05,224.94,7.65]
[1759383443391,3.03114335,225.04,224.94,7.65]
[1759383444295,10.15114335,225.03,224.94,7.65]
[1759383444587,3.03114335,225.02,224.94,7.65]
[1759383445595,3.03114335,225.01,224.94,7.65]
[1759383445793,3.03114335,225.02,224.94,9.01443136]
[1759383445993,3.03114335,225.01,224.94,7.65]
[1759383446197,3.03114335,225.02,224.94,7.65]
[1759383446387,3.03114335,225.01,224.94,7.65]
[1759383446586,3.03114335,225.0,224.94,7.65]
[1759383446786,3.03114335,224.99,224.94,7.65]
[1759383446996,3.03114335,225.0,224.93,8.74443136]
[1759383447192,3.03114335,224.99,224.93,8.74443136]
[1759383447396,3.03114335,224.98,224.94,7.38]
[1759383447593,3.03114335,224.97,224.93,1.36443136]
[1759383447797,3.03114335,224.96,224.93,1.36443136]
[1759383448002,3.03114335,225.0,224.93,1.36443136]
[1759383448197,3.03114335,224.99,224.93,1.36443136]
[1759383448498,3.03114335,224.98,224.93,1.36443136]
[1759383448692,3.03114335,224.97,224.94,7.38]
[1759383448888,3.03114335,224.96,224.94,7.38]
[1759383449089,3.03114335,224.95,224.94,7.38]
[1759383449999,7.12,225.03,224.94,7.38]
[1759383450199,3.05300437,225.02,224.94,7.38]
[1759383450401,7.12,225.03,224.94,7.38]
[1759383450402,3.05300437,225.01,224.94,7.38]
[1759383450599,3.05300437,225.0,224.94,7.38]
[1759383450796,3.05300437,224.99,224.93,8.74443136]
[1759383450997,3.05300437,224.98,224.94,7.38]
[1759383451198,3.05300437,224.97,224.93,5.36343136]
[1759383451503,7.12,225.03,224.94,7.38]
[1759383451800,3.05337799,225.02,224.94,7.38]
[1759383452004,3.05337799,225.01,224.94,7.38]
[1759383452195,3.05337799,225.0,224.94,7.38]
[1759383452393,3.05337799,224.99,224.8,62.2447]
[1759383452597,62.1851,225.02,224.89,7.38]
[1759383452598,10.17337799,224.98,224.89,7.38]
[1759383452903,3.05337799,224.97,224.94,1.36443136]
[1759383453199,3.9976,225.02,224.95,7.38]
[1759383453399,3.05353083,225.01,224.95,7.38]
[1759383453599,3.05353083,225.0,224.95,7.38]
[1759383453901,3.05353083,224.99,224.95,7.38]
[1759383454202,3.05353083,224.98,224.95,7.38]
[1759383454391,3.05353083,224.97,224.95,7.38]
[1759383454595,11.1173,225.03,224.95,7.38]
[1759383454895,3.05383475,225.02,224.95,7.38]
[1759383455095,3.05383475,225.01,224.95,7.38]
[1759383455296,3.05383475,225.0,224.95,7.38]
[1759383455501,3.05383475,224.99,224.95,7.38]
[1759383455697,7.12,225.02,224.95,7.38]
[1759383455698,3.05383475,224.98,224.95,7.38]
[1759383455898,3.05383475,224.97,224.95,7.38]
[1759383456101,7.12,225.02,224.95,7.38]
[1759383456301,3.05436213,225.01,224.95,7.38]
[1759383456600,3.9973,225.03,224.95,7.38]
[1759383456601,10.17436213,225.0,224.95,7.38]
[1759383456801,3.05436213,224.99,224.95,7.38]
[1759383457000,3.05436213,224.98,224.95,7.38]
[1759383457201,3.05436213,224.97,224.95,7.38]
[1759383457390,7.12,225.0,224.95,7.38]
[1759383457596,3.07731606,224.99,224.95,7.38]
[1759383457796,7.12,225.0,224.95,7.38]
[1759383457797,3.07731606,224.98,224.95,7.38]
[1759383457999,3.07731606,224.97,224.95,7.38]
[1759383458200,7.12,225.0,224.95,7.38]
[1759383458400,3.07734026,224.99,224.95,7.38]
[1759383458699,3.07734026,224.98,224.93,1.36443136]
[1759383458903,3.07734026,224.97,224.94,7.38]
[1759383459104,3.06583665,224.99,224.93,1.36443136]
[1759383459303,3.06583665,224.98,224.94,7.38]
[1759383459599,7.12,225.0,224.94,7.38]
[1759383459802,3.06669129,224.99,224.94,7.38]
[1759383460105,3.06669129,224.98,224.95,7.38]
[1759383460404,3.06674501,225.04,224.95,7.38]
[1759383460605,3.06674501,225.03,224.95,7.38]
[1759383460799,3.06674501,225.02,224.95,7.38]
[1759383461002,3.06674501,225.01,224.95,7.38]
[1759383461198,3.06674501,225.0,224.94,7.38]
[1759383461502,3.06674501,224.99,224.93,12.74353136]
[1759383461704,3.06674501,225.01,224.93,12.74353136]
[1759383461900,3.06674501,225.0,224.93,12.74353136]
[1759383462204,3.06674501,224.99,224.93,12.74353136]
[1759383462403,3.06674501,225.01,224.93,12.74353136]
[1759383462705,3.06674501,225.0,224.95,3.9988]
[1759383462908,3.06674501,225.01,224.96,7.38]
[1759383463206,3.06674501,225.01,224.95,12.74323136]
[1759383463601,7.12,225.02,224.95,12.74323136]
[1759383463806,10.18674501,225.02,224.95,12.74323136]
[1759383464004,3.06674501,225.01,224.95,12.74323136]
[1759383464903,3.06674501,225.01,224.96,7.38]
[1759383465098,3.06674501,225.03,224.96,7.38]
[1759383465303,3.06674501,225.02,224.96,7.38]
[1759383465506,3.06674501,225.01,224.96,7.38]
[1759383465708,3.06674501,225.05,224.96,7.38]
[1759383465902,10.18674501,225.04,224.96,7.38]
[1759383466114,3.06674501,225.03,224.96,7.38]
[1759383466313,3.06674501,225.02,224.97,3.9984]
[1759383466614,3.06674501,225.01,224.98,7.38]
[1759383466813,3.06674501,225.0,224.98,7.38]
[1759383467014,10.18674501,225.03,224.97,3.9984]
[1759383467214,3.06674501,225.02,224.98,7.38]
[1759383467418,3.06674501,225.01,224.98,7.38]
[1759383467611,7.12,225.03,224.98,7.38]
[1759383467612,3.06674501,225.0,224.98,7.38]
[1759383467809,3.06674501,225.02,224.98,7.38]
[1759383468009,3.06674501,225.01,224.99,7.38]
[1759383468214,3.06674501,225.0,224.99,7.38]
[1759383469220,3.06674501,225.0,224.96,3.9986]
[1759383469518,3.06674501,224.99,224.97,7.38]
[1759383469715,3.06674501,225.03,224.97,7.38]
[1759383470018,3.06674501,225.03,224.96,3.9986]
[1759383470019,3.06674501,225.02,224.96,11.3786]
[1759383470220,3.06674501,225.01,224.97,7.38]
[1759383470416,3.06674501,225.0,224.99,11.3781]
[1759383470717,10.18674501,225.03,225.0,7.38]
[1759383470915,3.06674501,225.02,224.98,7.38]
[1759383471118,3.06674501,225.01,224.98,7.38]
[1759383471319,3.06674501,225.0,224.98,7.38]
[1759383471513,7.12,225.03,224.98,7.38]
[1759383471713,3.05431779,225.02,224.98,7.38]
[1759383471914,3.05431779,225.01,224.98,7.38]
[1759383472116,7.12,225.03,224.98,7.38]
[1759383472117,3.05431779,225.0,224.98,7.38]
[1759383472316,7.12,225.03,224.97,12.74283136]
[1759383472516,3.05502672,225.02,224.98,7.38]
[1759383472815,3.05502672,225.02,224.83,235.39873264]
[1759383472816,7.12,225.0,224.84,7.38]
[1759383473024,7.12,224.91,224.84,7.38]
[1759383473217,1.36443136,224.89,224.83,5.97125987]
[1759383473619,7.12,224.87,224.83,5.97125987]
[1759383474325,7.12,224.87,224.83,17.45205987]
[1759383477918,1.36443136,224.89,224.85,4.0005]
[1759383478224,1.36443136,224.89,224.86,7.48]
[1759383478424,4.41833596,224.89,224.86,7.48]
[1759383478624,1.36443136,224.89,224.86,7.48]
[1759383478824,4.41833596,224.89,224.86,7.48]
[1759383479125,1.36443136,224.89,224.86,7.48]
[1759383480427,1.36443136,224.89,224.85,4.0005]
[1759383480623,1.36443136,224.89,224.86,7.48]
[1759383480927,3.0539046,224.92,224.88,7.48]
[1759383481227,3.0539046,224.91,224.88,7.48]
[1759383481424,10.8439046,224.92,224.88,7.48]
[1759383481628,3.0539046,224.91,224.88,7.48]
[1759383481822,3.0539046,224.9,224.88,7.48]
[1759383482022,3.0539046,224.91,224.88,7.48]
[1759383482223,3.0539046,224.91,224.89,3.9998]
[1759383482424,3.0539046,224.91,224.89,11.4798]
[1759383482616,3.0539046,224.92,224.89,11.4798]
[1759383482817,3.0539046,224.91,224.89,11.4798]
[1759383483017,7.79,224.89,224.75,7.48]
[1759383483219,1.36443136,224.87,224.77,7.48]
[1759383483416,4.41833596,224.87,224.77,7.48]
[1759383483621,3.0539046,224.86,224.77,11.4818]
[1759383483822,3.0539046,224.85,224.77,11.4818]
[1759383484018,3.0539046,224.86,224.77,11.4818]
[1759383484325,1.36443136,224.87,224.79,4.0016]
[1759383484628,4.41833596,224.87,224.79,4.0016]
[1759383484820,1.36443136,224.87,224.79,4.0016]
[1759383485023,4.41833596,224.87,224.79,4.0016]
[1759383485327,1.36443136,224.87,224.79,4.0016]
[1759383488023,1.36443136,224.87,224.79,8.84443136]
[1759383488322,7.79,224.89,224.79,8.84443136]
[1759383489433,3.06604549,224.92,224.82,8.84443136]